bitfinex/quotes_ETHUSD_20241225
["timestamp","ask_amount","ask_price","bid_price","bid_amount"]
[1735163847639,2.30873,3465.1,3464.5,0.49310577]
[1735163847820,2.30889,3464.9,3464.4,0.7556]
[1735163849649,2.30869,3465.2,3464.4,0.7556]
[1735163854621,2.30853,3465.5,3464.5,0.02886228]
[1735163854851,2.30853,3465.5,3464.6,1.05200423]
[1735163855321,2.30853,3465.4,3464.6,1.05200423]
[1735163855635,2.30853,3465.4,3464.6,0.8182]
[1735163862295,2.30863,3465.3,3464.6,0.8182]
[1735163864015,1.20835289,3466.0,3464.8,0.8182]
[1735163864167,3.51649289,3466.0,3465.0,0.8182]
[1735163864366,2.30821,3465.9,3465.1,0.84705588]
[1735163864803,1.20835289,3466.0,3465.1,1.13379859]
[1735163865005,3.51648289,3466.0,3465.2,0.815]
[1735163865954,2.30813,3466.0,3465.2,0.815]
[1735163868072,2.30813,3466.0,3465.4,0.815]
[1735163872893,2.30821,3465.9,3465.4,0.815]
[1735163873446,1.20835289,3466.1,3465.4,0.815]
[1735163873667,2.30842,3465.6,3465.4,0.815]
[1735163875810,1.20835289,3465.9,3465.4,0.815]
[1735163875955,2.30835,3465.7,3465.4,0.815]
[1735163876665,1.20835289,3465.9,3465.4,0.815]
[1735163877261,1.20835289,3465.9,3465.5,35.0]
[1735163878201,3.51657289,3465.9,3465.5,35.0]
[1735163878410,2.30822,3465.9,3465.5,35.0]
[1735163881401,2.30822,3465.9,3465.4,0.815]
[1735163881918,2.30822,3465.9,3465.4,35.815]
[1735163882090,2.30822,3465.9,3465.4,37.00839039]
[1735163882819,2.30822,3465.9,3465.4,2.00839039]
[1735163883019,2.30822,3465.9,3465.4,0.815]
[1735163884341,2.30822,3465.9,3465.5,35.0]
[1735163885041,1.20835289,3466.0,3465.5,35.0]
[1735163885391,1.20835289,3465.9,3465.5,35.0]
[1735163886318,4.11681436,3466.1,3465.6,0.7754]
[1735163886319,1.20835289,3466.1,3465.6,0.7754]
[1735163886497,1.20835289,3466.1,3465.7,2.84628631]
[1735163886835,1.20835289,3466.1,3465.6,0.7754]
[1735163887130,1.20835289,3466.1,3465.8,35.0]
[1735163887763,2.62522908,3466.2,3465.8,35.0]
[1735163890044,3.8271,3465.8,3464.9,1.20163618]
[1735163890336,2.30874,3465.1,3464.9,1.20163618]
[1735163890635,2.3088,3465.0,3464.9,1.20163618]
[1735163891668,2.3088,3465.0,3464.9,35.0]
[1735163892168,2.3088,3465.0,3464.4,0.7754]
[1735163892667,3.51701289,3465.2,3464.5,35.0]
[1735163892823,3.51701289,3465.2,3464.5,37.84628631]
[1735163893027,1.20835289,3465.1,3464.5,37.84628631]
[1735163894637,1.47789327,3465.1,3464.5,37.84628631]
[1735163895672,1.20835289,3465.2,3464.5,37.84628631]
[1735163896868,2.68635624,3465.2,3464.5,37.84628631]
[1735163897078,2.68635624,3465.2,3464.6,2.84628631]
[1735163897429,2.68635624,3465.2,3464.4,0.7754]
[1735163897677,2.68635624,3465.2,3464.7,35.0]
[1735163898559,2.68635624,3465.2,3464.8,3.13843]
[1735163898778,2.68635624,3465.2,3465.1,1.3795]
[1735163899075,2.68635624,3465.2,3465.1,3.68823]
[1735163899276,2.68635624,3465.2,3465.1,4.32440093]
[1735163899570,2.68635624,3465.2,3465.1,39.32440093]
[1735163900569,1.20835289,3465.9,3465.2,2.30861]
[1735163900870,1.20835289,3465.9,3465.3,1.3558]
[1735163901073,1.20835289,3465.9,3465.1,0.63617093]
[1735163901074,1.20835289,3465.9,3465.7,0.8058]
[1735163901278,1.20835289,3465.9,3465.8,1.20872793]
[1735163901447,1.20835289,3465.9,3465.8,4.06698793]
[1735163901844,1.20835289,3465.9,3465.8,39.06698793]
[1735163902043,1.20835289,3465.9,3465.8,36.75872793]
[1735163902349,1.20835289,3466.2,3465.8,36.75872793]
[1735163902579,1.20835289,3466.2,3466.0,0.55]
[1735163903595,2.594567,3466.7,3466.0,0.55]
[1735163904591,1.20835289,3466.8,3466.0,0.55]
[1735163905956,1.20835289,3466.8,3465.9,0.55]
[1735163906198,1.20835289,3466.8,3466.0,35.0]
[1735163906499,1.20835289,3466.8,3466.1,2.84628631]
[1735163907017,1.20835289,3466.8,3465.9,0.55]
[1735163907018,2.59343626,3466.8,3466.0,0.8058]
[1735163907217,2.59343626,3466.8,3466.2,35.0]
[1735163908222,3.51589289,3466.9,3466.2,35.0]
[1735163908379,3.51589289,3466.9,3466.2,37.84628631]
[1735163909524,2.30754,3466.9,3466.2,37.84628631]
[1735163910125,2.30754,3466.9,3466.2,2.84628631]
[1735163910359,2.30754,3466.9,3466.0,0.8058]
[1735163910698,2.30754,3466.9,3466.1,35.0]
[1735163911727,0.7812,3467.0,3466.2,0.57884627]
[1735163912024,0.7812,3467.0,3466.3,0.784]
[1735163912326,0.7812,3467.0,3466.4,35.0]
[1735163912483,0.7812,3467.0,3466.5,2.84628631]
[1735163913019,0.7812,3467.0,3466.3,0.784]
[1735163913329,0.7812,3467.0,3466.4,35.0]
[1735163918359,0.7588,3467.3,3466.5,0.55]
[1735163918948,0.7588,3467.3,3466.6,35.0]
[1735163920448,2.30724,3467.4,3466.7,0.784]
[1735163920741,2.30724,3467.4,3466.8,2.84628631]
[1735163920907,0.7588,3467.5,3466.8,0.55]
[1735163921251,0.7588,3467.5,3466.9,35.0]
[1735163925383,3.06593,3467.5,3466.9,35.0]
[1735163925591,2.3072,3467.4,3466.9,35.0]
[1735163928091,2.30734,3467.2,3466.9,35.0]
[1735163928275,2.30734,3467.2,3466.9,37.84628631]
[1735163931249,2.30734,3467.2,3466.9,2.84628631]
[1735163931483,2.30734,3467.2,3466.5,0.8318]
[1735163933363,2.30748,3467.0,3466.0,2.30812]
[1735163933562,2.30748,3467.0,3466.1,1.3818]
[1735163934379,0.7641,3467.1,3466.1,1.3818]
[1735163934799,0.7641,3467.1,3466.1,4.05527933]
[1735163935058,0.7641,3467.3,3466.5,0.55]
[1735163942102,0.7641,3467.3,3466.6,0.02884262]
[1735163942645,0.7641,3467.3,3466.5,0.55]
[1735163944041,2.30733,3467.2,3466.5,0.55]
[1735163944245,2.30743,3467.1,3466.4,0.8318]
[1735163944746,0.7641,3467.3,3466.4,0.8318]
[1735163944903,2.30752,3467.0,3466.4,0.8318]
[1735163945846,1.20835289,3466.9,3466.4,0.8318]
[1735163946891,1.20835289,3466.8,3466.4,0.8318]
[1735163947838,1.20835289,3466.7,3466.4,0.8318]
[1735163949386,1.20835289,3466.8,3466.4,0.8318]
[1735163950294,0.8038,3466.7,3465.9,1.317]
[1735163950494,0.8038,3466.7,3466.0,1.14856826]
[1735163951843,1.20835289,3466.5,3466.0,1.14856826]
[1735163952671,1.20835289,3466.5,3465.9,0.767]
[1735163953071,4.90191943,3466.6,3465.9,0.767]
[1735163953225,2.59418943,3466.6,3465.9,0.767]
[1735163954141,2.59418943,3466.6,3466.0,1.19947129]
[1735163954431,2.59418943,3466.6,3466.1,0.767]
[1735163954618,2.59418943,3466.6,3466.2,0.19664713]
[1735163954986,1.20835289,3466.4,3466.2,0.19664713]
[1735163955852,1.20835289,3466.6,3466.3,0.8048]
[1735163957173,1.20835289,3466.7,3466.3,0.8048]
[1735163958448,2.04135289,3466.7,3466.2,0.19664713]
[1735163958648,2.04135289,3466.7,3466.1,0.8048]
[1735163958848,1.20835289,3466.6,3466.1,0.8048]
[1735163960287,2.59418943,3466.6,3466.1,0.8048]
[1735163964769,2.59418943,3466.6,3466.1,2.00427129]
[1735163965467,2.59418943,3466.6,3466.5,3.6626]
[1735163965683,2.59418943,3466.6,3466.5,7.14880713]
[1735163966603,1.80873436,3466.8,3466.7,6.66247]
[1735163966803,1.20989824,3467.5,3466.8,3.8048]
[1735163967099,1.20989824,3467.5,3466.8,0.8048]
[1735163967298,2.3072,3467.4,3466.8,0.8048]
[1735163970262,2.30719999,3467.4,3466.8,0.8048]
[1735163970799,1.80873436,3467.5,3466.8,0.8048]
[1735163972900,1.80873436,3467.5,3466.9,0.55]
[1735163973492,1.80873436,3467.6,3466.9,0.55]
[1735163974994,1.80873436,3467.6,3466.8,1.3381]
[1735163975197,1.80873436,3467.6,3467.1,0.7881]
[1735163975493,1.80873436,3467.6,3467.1,0.81693932]
[1735163976468,2.30684,3468.0,3467.1,0.81693932]
[1735163976869,2.30687,3467.9,3467.1,0.81693932]
[1735163978097,2.30687,3467.9,3467.1,0.7881]
[1735163978295,3.51603514,3467.9,3467.1,0.7881]
[1735163978496,3.51603514,3467.9,3467.1,1.25062381]
[1735163979116,1.20916514,3467.9,3467.1,1.25062381]
[1735163979414,1.20916514,3467.9,3467.3,0.7534]
[1735163980098,1.20916514,3468.0,3467.3,0.7534]
[1735163981793,2.30662,3468.3,3467.3,0.7534]
[1735163982019,2.30662,3468.3,3467.5,0.7534]
[1735163982799,1.20916514,3468.4,3467.5,0.7534]
[1735163983004,1.20916514,3468.4,3467.6,0.55]
[1735163983222,6.12078,3468.5,3467.7,0.7534]
[1735163983223,7.32994514,3468.5,3467.7,0.7534]
[1735163983532,7.32994514,3468.5,3467.7,1.13211724]
[1735163984197,2.30657,3468.4,3467.7,1.13211724]
[1735163984403,2.30666,3468.3,3467.7,0.7534]
[1735163987042,2.30672,3468.2,3467.7,0.7534]
[1735163987453,2.30674,3468.1,3467.7,0.7534]
[1735163987802,2.3068,3468.0,3467.7,0.7534]
[1735163988006,2.3068,3468.0,3467.3,0.55]
[1735163988322,2.3068,3468.0,3467.3,0.99417003]
[1735163988530,2.3068,3468.0,3467.4,0.7723]
[1735163988902,2.30668,3468.2,3467.4,0.7723]
[1735163989103,2.30674,3468.1,3467.4,0.7723]
[1735163990451,0.8143,3468.5,3467.4,0.7723]
[1735163990651,2.30662,3468.3,3467.6,0.7723]
[1735163992959,3.0,3468.6,3467.6,0.7723]
[1735163993133,0.8163,3468.6,3467.6,0.7723]
[1735163993319,2.30647,3468.5,3467.6,0.7723]
[1735163993514,2.30665,3468.3,3467.6,0.7723]
[1735163993734,2.3067,3468.2,3467.6,0.7723]
[1735163994056,0.8163,3468.5,3467.2,0.7723]
[1735163994272,2.30702,3467.7,3467.2,0.7723]
[1735163994431,2.30716,3467.5,3467.2,0.7723]
[1735163996070,0.8163,3467.9,3467.3,35.0]
[1735163996212,2.30694,3467.8,3467.3,35.0]
[1735163996422,2.30679,3468.1,3467.4,0.7723]
[1735163996958,1.20916514,3468.3,3467.5,0.02883849]
[1735163997115,1.20916514,3468.3,3467.5,0.7723]
[1735163997316,3.51582514,3468.3,3467.6,2.84628631]
[1735163997727,2.30668,3468.2,3467.6,2.84628631]
[1735163997943,2.30668,3468.2,3467.5,0.7723]
[1735164002813,2.02546514,3468.6,3467.5,0.7723]
[1735164003052,2.02546514,3468.6,3467.8,0.8203]
[1735164003053,1.20916514,3468.6,3467.8,0.8203]
[1735164003260,2.30648,3468.5,3467.8,0.8203]
[1735164003430,2.30648,3468.5,3467.9,35.0]
[1735164004248,2.30662,3468.3,3467.9,35.0]
[1735164005619,2.30653,3468.4,3467.9,35.0]
[1735164005848,0.824,3468.3,3467.5,0.8203]
[1735164006159,2.30694,3467.8,3466.9,0.8203]
[1735164006318,2.30694,3467.8,3467.0,35.0]
[1735164006936,2.30694,3467.8,3467.1,0.8203]
[1735164007161,2.307,3467.7,3467.1,0.8203]
[1735164007536,2.307,3467.7,3467.2,35.0]
[1735164008126,2.30689,3467.9,3467.2,35.0]
[1735164008467,2.30694,3467.8,3467.2,35.0]
[1735164008662,0.824,3468.0,3467.2,37.84628631]
[1735164008831,2.88989315,3468.1,3467.2,37.84628631]
[1735164009037,2.30679,3468.1,3467.3,0.8203]
[1735164009231,1.20916514,3468.2,3467.3,0.8203]
[1735164009470,3.51591514,3468.1,3467.3,0.8203]
[1735164009675,3.51591514,3468.1,3467.4,35.0]
[1735164009841,3.51591514,3468.1,3467.4,37.84628631]
[1735164010565,2.30702,3467.7,3467.4,35.0]
[1735164011122,2.30713,3467.5,3467.4,35.0]
[1735164011324,2.30728,3467.3,3466.8,1.20163618]
[1735164011921,2.30728,3467.3,3466.9,35.0]
[1735164012961,0.824,3467.5,3466.9,35.0]
[1735164013267,2.30699,3467.8,3467.0,0.8203]
[1735164013467,1.20916514,3467.9,3467.0,0.84914321]
[1735164013769,1.20916514,3467.5,3467.1,0.8203]
[1735164014861,2.30675,3468.1,3467.1,0.8203]
[1735164014862,3.51591514,3468.1,3467.1,0.8203]
[1735164015061,3.51591514,3468.1,3467.2,2.84628631]
[1735164015458,2.30695,3467.8,3467.1,0.8203]
[1735164016069,2.30703,3467.7,3467.1,0.8203]
[1735164016265,2.30727,3467.3,3466.9,35.0]
[1735164017978,1.20916514,3467.5,3466.9,35.0]
[1735164018176,3.51629514,3467.5,3466.9,35.0]
[1735164018322,1.20916514,3467.5,3467.0,2.84628631]
[1735164018785,1.20916514,3467.4,3467.0,2.84628631]
[1735164019598,1.20916514,3467.4,3466.8,0.8198]
[1735164019787,1.20916514,3467.4,3467.1,35.0]
[1735164020151,1.80873436,3467.6,3467.1,35.0]
[1735164020152,1.20916514,3467.6,3467.1,35.0]
[1735164022302,2.30713,3467.5,3467.1,35.0]
[1735164023086,3.51629514,3467.5,3467.1,35.0]
[1735164024083,3.51629514,3467.5,3466.8,0.8198]
[1735164024383,3.51629514,3467.5,3466.8,1.16746765]
[1735164024384,1.28812243,3467.4,3466.8,1.16746765]
[1735164024581,1.28812243,3467.4,3466.9,35.0]
[1735164025384,2.09532243,3467.4,3466.9,35.0]
[1735164025585,2.30733,3467.2,3466.9,35.0]
[1735164025752,0.8072,3467.4,3466.3,0.8198]
[1735164025753,2.30743,3467.1,3466.3,0.8198]
[1735164025956,2.30748,3467.0,3466.4,0.64800981]
[1735164026154,0.8072,3467.4,3466.5,35.0]
[1735164026357,3.11481,3466.8,3466.2,1.20163618]
[1735164026578,2.30772,3466.7,3466.2,1.20163618]
[1735164026887,2.30772,3466.7,3466.3,35.0]
[1735164030337,2.30772,3466.7,3466.1,0.8198]
[1735164030541,2.30772,3466.7,3466.2,0.37427179]
[1735164030902,2.30772,3466.7,3466.3,35.0]
[1735164032394,0.8072,3466.8,3466.3,35.0]
[1735164032763,2.30754,3466.9,3466.3,35.0]
[1735164034105,1.20916514,3467.1,3466.4,0.8032]
[1735164034261,1.20916514,3467.1,3466.5,2.84628631]
[1735164034439,1.80873436,3467.2,3466.4,0.8032]
[1735164034440,1.20916514,3467.2,3466.4,0.8032]
[1735164034805,1.20916514,3467.2,3466.6,35.0]
[1735164035302,0.766,3467.1,3466.1,0.8032]
[1735164035455,1.20916514,3467.2,3466.0,2.92291792]
[1735164035456,2.30782,3466.5,3466.0,2.92291792]
[1735164035804,2.30782,3466.5,3466.0,37.92291792]
[1735164039001,2.30782,3466.5,3466.0,2.92291792]
[1735164039705,3.51671514,3466.9,3466.2,0.8032]
[1735164039841,5.30755,3466.9,3466.2,0.8032]
[1735164040494,5.30755,3466.9,3466.3,35.0]
[1735164046598,2.3076,3466.8,3466.3,35.0]
[1735164047803,0.766,3467.0,3466.3,35.0]
[1735164047948,0.8047,3466.6,3466.0,2.92291792]
[1735164048354,0.8047,3466.6,3466.0,37.92291792]
[1735164048554,0.8047,3466.6,3466.0,40.69005066]
[1735164050491,2.30768,3466.7,3466.0,40.69005066]
[1735164051552,2.30768,3466.7,3466.0,5.69005066]
[1735164051750,2.30768,3466.7,3466.0,2.92291792]
[1735164051999,2.30768,3466.7,3466.1,35.0]
[1735164056407,2.3076,3466.8,3466.1,35.0]
[1735164056585,0.8047,3466.9,3466.1,35.0]
[1735164057459,3.8047,3466.9,3466.1,35.0]
[1735164057626,2.30783,3466.5,3466.0,2.92291792]
[1735164057966,2.30787,3466.4,3466.0,37.92291792]
[1735164059527,2.30775,3466.6,3466.0,39.89050257]
[1735164061122,2.30775,3466.6,3466.0,4.89050257]
[1735164061327,2.30775,3466.6,3466.0,2.92291792]
[1735164061635,4.32147514,3466.8,3466.1,35.0]
[1735164061774,1.20916514,3466.8,3466.2,3.45807647]
[1735164062476,1.20916514,3466.8,3466.3,35.0]
[1735164063030,3.06199,3467.0,3466.3,35.0]
[1735164063207,3.06199,3467.0,3466.4,2.84628631]
[1735164063590,3.06199,3467.0,3466.2,3.45807647]
[1735164064427,4.27115514,3467.0,3466.2,3.45807647]
[1735164065048,4.27115514,3467.0,3466.2,0.8012]
[1735164067533,1.28892493,3466.9,3466.2,0.8012]
[1735164068931,1.20916514,3466.9,3466.2,0.8012]
[1735164069242,1.20916514,3466.9,3466.3,0.92241179]
[1735164069404,1.20916514,3466.9,3466.4,0.8012]
[1735164070303,1.20916514,3467.1,3466.4,1.79825557]
[1735164071740,1.20916514,3467.1,3466.5,0.99705557]
[1735164072735,1.20916514,3467.1,3466.4,0.8012]
[1735164072900,1.20916514,3467.0,3466.4,1.77038499]
[1735164073087,1.20916514,3467.0,3466.4,0.96918499]
[1735164073729,1.20916514,3467.0,3466.5,0.8012]
[1735164074432,2.98841738,3467.5,3466.4,0.96918499]
[1735164074433,8.89577144,3470.8,3467.2,5.31375294]
[1735164074581,7.28669294,3472.6,3471.1,0.8]
[1735164074582,4.98292294,3472.6,3471.1,0.8]
[1735164074787,4.98292294,3472.6,3471.1,3.45687647]
[1735164074985,4.98292294,3472.6,3471.7,0.25]
[1735164075283,2.30371,3472.7,3471.7,0.25]
[1735164075284,2.30371,3472.7,3471.9,0.25]
[1735164075499,0.24741286,3472.7,3471.9,0.25]
[1735164075838,0.1704186,3472.9,3472.5,2.65687647]
[1735164076004,0.1704186,3472.9,3472.7,0.25]
[1735164076201,0.1704186,3472.9,3472.7,3.55141086]
[1735164076785,0.1704186,3472.9,3472.8,6.94558346]
[1735164077287,2.30297,3473.8,3473.2,0.25]
[1735164077483,0.822,3473.9,3473.2,0.25]
[1735164077484,1.40271613,3473.9,3473.2,0.25]
[1735164077827,1.40271613,3473.9,3473.2,10.75622858]
[1735164078011,0.5034207,3473.9,3473.2,10.50622858]
[1735164078232,2.30301,3473.7,3473.2,10.50622858]
[1735164078381,2.30324,3473.4,3473.3,4.46501794]
[1735164078732,2.30301,3473.7,3473.3,4.46501794]
[1735164078894,2.30301,3473.7,3473.3,6.91370028]
[1735164079101,2.30324,3473.4,3473.3,6.91370028]
[1735164079327,3.063865,3473.4,3473.3,6.91370028]
[1735164079516,3.063865,3473.4,3473.2,1.18455645]
[1735164079889,0.760625,3473.4,3473.2,1.18455645]
[1735164080093,3.063835,3473.4,3473.3,2.44377155]
[1735164080798,3.063835,3473.4,3473.3,6.17242741]
[1735164081000,3.895235,3473.4,3473.3,6.17242741]
[1735164081388,3.895235,3473.4,3473.3,3.62359429]
[1735164082554,3.895235,3473.4,3473.3,4.22060623]
[1735164083134,3.895235,3473.4,3473.3,6.1662085]
[1735164083934,3.895235,3473.4,3473.3,4.38937382]
[1735164084727,0.9198245,3473.4,3473.3,4.38937382]
[1735164084933,0.28062807,3473.8,3473.3,6.75848673]
[1735164085166,2.30321,3473.4,3473.3,6.75848673]
[1735164085587,2.30321,3473.4,3473.3,2.44377155]
[1735164086542,2.30321,3473.4,3473.3,4.20522676]
[1735164087339,2.30321,3473.4,3473.3,4.38175209]
[1735164087645,3.063832,3473.4,3473.3,4.38175209]
[1735164088312,3.8314,3473.7,3473.3,6.750865]
[1735164088510,0.8314,3473.7,3473.3,6.750865]
[1735164088845,2.30321,3473.4,3473.3,6.750865]
[1735164089051,2.30321,3473.4,3473.3,6.13756524]
[1735164089251,9.14838286,3473.4,3473.3,4.93861524]
[1735164089812,2.30341,3473.1,3473.0,1.1704121]
[1735164090310,2.30357,3472.9,3472.7,1.1704121]
[1735164091421,2.30357,3472.9,3472.8,0.96708088]
[1735164091845,2.30357,3472.9,3472.8,2.13749298]
[1735164092135,6.14838286,3473.4,3472.8,2.13749298]
[1735164092136,6.11296475,3473.4,3472.8,2.13749298]
[1735164092333,0.61129647,3473.3,3472.8,2.13749298]
[1735164092731,2.30355,3472.9,3472.8,2.13749298]
[1735164093465,2.30355,3472.9,3472.8,0.96708088]
[1735164093624,0.543762,3473.4,3472.8,0.96708088]
[1735164093823,2.30351,3473.0,3472.8,0.96708088]
[1735164094340,2.30351,3473.0,3472.8,2.13749298]
[1735164094959,2.30351,3473.0,3472.5,1.4204121]
[1735164095117,0.56947666,3473.2,3472.5,1.4204121]
[1735164095118,2.87282666,3473.2,3472.7,0.25]
[1735164095871,2.30335,3473.2,3472.7,0.25]
[1735164096165,2.30335,3473.2,3472.8,0.96589967]
[1735164096545,2.533685,3473.2,3472.8,0.96589967]
[1735164096726,2.30342,3473.1,3472.8,0.96589967]
[1735164096926,2.30342,3473.1,3472.9,0.96589967]
[1735164097861,2.30342,3473.1,3472.7,0.25]
[1735164098067,2.30342,3473.1,3472.9,0.25]
[1735164098538,0.230335,3473.2,3472.9,0.25]
[1735164098539,4.14713045,3473.6,3472.9,0.25]
[1735164098742,0.80507454,3473.5,3472.9,0.25]
[1735164099464,0.22269519,3473.7,3472.7,1.1704121]
[1735164099759,2.30355,3472.9,3472.7,1.1704121]
[1735164099937,2.30355,3472.9,3472.6,0.25]
[1735164100264,0.22269519,3473.7,3472.6,0.25]
[1735164100448,0.54547024,3473.6,3472.6,0.25]
[1735164100824,2.30342,3473.1,3472.6,0.25]
[1735164101163,2.3034,3473.2,3472.6,0.25]
[1735164101465,2.84857024,3473.6,3472.6,0.25]
[1735164101466,2.84857024,3473.6,3472.7,0.13214008]
[1735164101765,2.30315,3473.5,3472.7,0.13214008]
[1735164101963,0.30713154,3473.4,3472.8,0.34401706]
[1735164102169,2.30347,3473.1,3472.8,0.34401706]
[1735164102693,2.30347,3473.1,3472.6,0.25]
[1735164104088,2.30348,3473.0,3472.6,0.25]
[1735164104403,2.30348,3473.0,3472.7,0.55329678]
[1735164105497,2.30348,3473.0,3472.8,0.55329678]
[1735164105880,2.30348,3473.0,3472.9,0.55329678]
[1735164106800,2.30348,3473.0,3472.9,0.21280645]
[1735164107499,0.31557518,3473.3,3472.9,0.21280645]
[1735164107654,0.54547024,3473.6,3472.9,0.21280645]
[1735164107855,2.30338,3473.2,3472.9,0.21280645]
[1735164108094,2.30338,3473.2,3472.6,0.25]
[1735164108280,2.30342,3473.1,3472.6,0.25]
[1735164108667,1.032552,3473.4,3472.6,0.25]
[1735164108866,0.56460793,3473.2,3472.7,0.21367226]
[1735164109097,0.85138372,3473.2,3472.6,0.25]
[1735164109465,2.30341,3473.2,3472.6,0.25]
[1735164110106,2.30341,3473.2,3472.7,0.7864]
[1735164111515,2.30341,3473.2,3472.8,0.25]
[1735164112186,0.58432031,3473.4,3472.7,0.7864]
[1735164112187,2.88754031,3473.4,3473.0,0.25]
[1735164112525,2.30322,3473.4,3473.0,0.25]
[1735164112704,2.83663065,3473.4,3473.0,0.25]
[1735164114813,0.53341065,3473.4,3473.0,0.25]
[1735164114979,2.30335,3473.2,3473.0,0.25]
[1735164116014,2.30335,3473.2,3473.0,35.25]
[1735164116618,0.58881685,3473.5,3472.7,1.0364]
[1735164116791,0.58881685,3473.5,3472.7,0.25]
[1735164116792,2.30361,3472.8,3472.7,0.25]
[1735164117182,2.30361,3472.8,3472.5,0.25]
[1735164117579,2.30361,3472.8,3472.3,35.0]
[1735164117580,0.230361,3472.8,3472.3,35.0]
[1735164117809,3.4785091,3473.0,3472.0,1.1704121]
[1735164118144,2.30374,3472.6,3472.0,1.1704121]
[1735164118350,2.30401,3472.3,3472.1,35.0]
[1735164119741,2.30401,3472.2,3471.9,0.25]
[1735164120247,2.30401,3472.2,3472.0,35.0]
[1735164120406,1.10252643,3472.2,3472.0,35.0]
[1735164120605,2.30374,3472.6,3472.0,35.0]
[1735164120840,2.30408,3472.1,3472.0,35.0]
[1735164121217,2.534184,3472.5,3472.0,35.0]
[1735164121863,2.534184,3472.5,3472.0,8.63616838]
[1735164122028,2.30407,3472.2,3472.0,11.10850377]
[1735164122211,2.30395,3472.3,3472.0,11.10850377]
[1735164122610,2.30395,3472.3,3472.2,3.58666849]
[1735164123451,2.764723,3472.3,3472.2,6.92253908]
[1735164124449,2.764723,3472.3,3472.2,7.43820198]
[1735164124950,3.584423,3472.3,3472.2,7.43820198]
[1735164125155,6.2328321,3472.3,3472.2,6.84028427]
[1735164126257,6.2328321,3472.3,3472.2,2.47233538]
[1735164127042,6.2328321,3472.3,3472.2,0.98893415]
[1735164127867,3.9288821,3472.3,3471.8,1.19496339]
[1735164128081,2.30421,3471.9,3471.8,1.19496339]
[1735164128622,3.12391,3471.9,3471.8,1.19496339]
[1735164129832,0.8197,3471.9,3471.1,1.19496339]
[1735164130170,2.30459,3471.4,3471.1,1.19496339]
[1735164130728,2.30459,3471.4,3471.0,0.25]
[1735164132272,2.30459,3471.4,3471.1,35.0]
[1735164134467,4.03966122,3471.9,3471.1,35.0]
[1735164134674,2.30467,3471.2,3471.1,35.0]
[1735164135379,2.30467,3471.2,3470.7,0.25]
[1735164135767,2.30467,3471.2,3470.8,35.0]
[1735164136275,2.30434,3471.7,3470.8,35.0]
[1735164136475,2.30477,3471.1,3470.8,35.0]
[1735164137473,2.6484091,3471.5,3470.8,35.0]
[1735164137683,2.30487,3470.9,3470.8,35.0]
[1735164137880,2.30487,3470.9,3470.5,0.7504]
[1735164137881,3.4156091,3471.2,3470.3,0.25]
[1735164138177,2.30507,3470.7,3470.0,0.25]
[1735164138380,2.30507,3470.7,3470.1,35.0]
[1735164138547,2.30507,3470.7,3470.1,35.25]
[1735164138875,2.6484091,3470.9,3470.1,35.25]
[1735164139782,2.30512,3470.6,3470.1,35.25]
[1735164140075,2.30515,3470.5,3470.1,35.25]
[1735164142182,2.30515,3470.5,3470.1,0.25]
[1735164142680,2.30515,3470.5,3470.2,35.0]
[1735164146750,0.7672,3470.5,3470.2,35.0]
[1735164146951,2.30523,3470.4,3469.9,0.25]
[1735164147350,2.30523,3470.4,3469.9,35.25]
[1735164147566,2.30528,3470.3,3469.9,35.25]
[1735164147788,3.22049801,3470.3,3469.6,0.8115]
[1735164147995,3.22049801,3470.3,3469.2,1.0615]
[1735164147996,2.6484091,3470.0,3469.2,1.0615]
[1735164148196,2.30582,3469.5,3468.9,1.0615]
[1735164148425,2.30582,3469.5,3469.0,35.0]
[1735164148653,2.306,3469.3,3468.9,0.8115]
[1735164148785,2.306,3469.3,3468.8,0.25]
[1735164149106,2.306,3469.3,3468.8,35.25]
[1735164149311,2.30581,3469.5,3468.8,35.25]
[1735164149722,2.30581,3469.5,3468.8,0.25]
[1735164149923,3.03179391,3469.5,3468.8,0.25]
[1735164151427,2.78139391,3469.5,3468.8,0.25]
[1735164152152,2.30589,3469.4,3468.8,0.25]
[1735164152345,2.89062523,3469.4,3468.8,0.25]
[1735164152850,2.30575,3469.6,3469.0,0.25]
[1735164153050,2.30575,3469.6,3469.1,35.0]
[1735164154748,2.30581,3469.5,3469.1,35.0]
[1735164158361,2.306,3469.2,3469.1,35.0]
[1735164158518,2.30625,3468.9,3468.6,0.25]
[1735164158856,2.30627,3468.8,3468.6,0.25]
[1735164159465,2.30615,3469.0,3468.6,0.25]
[1735164159763,2.30629,3468.8,3468.3,35.25]
[1735164160166,4.9545391,3469.1,3468.6,0.25]
[1735164160922,2.6484091,3469.1,3468.6,0.25]
[1735164161122,2.30614,3469.0,3468.6,0.25]
[1735164161564,2.30622,3468.9,3468.6,0.25]
[1735164161739,4.9544991,3469.1,3468.6,0.25]
[1735164162665,2.30621,3468.9,3468.6,0.25]
[1735164162836,2.30628,3468.8,3468.3,35.25]
[1735164163044,2.30648,3468.5,3468.3,35.0]
[1735164163364,1.40454478,3469.2,3468.3,35.25]
[1735164163565,0.8132,3469.7,3468.9,0.25]
[1735164163763,2.6484091,3469.2,3468.2,1.0436]
[1735164164067,2.3065,3468.5,3467.9,0.7936]
[1735164164268,2.3065,3468.5,3468.3,35.0]
[1735164164937,2.3065,3468.5,3468.1,0.25]
[1735164165448,2.3065,3468.5,3468.2,35.0]
[1735164172530,0.57146484,3468.7,3468.2,35.0]
[1735164172832,0.57146484,3468.7,3468.3,3.09628631]
[1735164174119,4.9546191,3468.9,3468.3,3.09628631]
[1735164174304,2.30621,3468.9,3468.4,0.759]